[Event "360 One Wealth GP-3 2024"]
[Site "Mumbai"]
[Date "2024.02.06"]
[Round "2.15"]
[White "Yuti Mayur Patel"]
[Black "Lakshya Agrawal"]
[Result "1-0"]
[ECO "B13"]
[WhiteElo "1426"]
[BlackElo "1013"]
[Annotator "NA RC"]
[PlyCount "143"]
[EventDate "2024.02.04"]
[EventType "swiss"]
[EventCountry "IND"]
[SourceTitle "playchess.com"]
[Source "ChessBase"]
[SourceQuality "1"]
[TimeControl "5400+30"]

1. e4 c6 2. d4 d5 3. exd5 {[%emt 0:08:55]} cxd5 4. Bd3 {[%emt 0:00:28]} Nc6 5. c3 {[%emt 0:00:57]} Nf6 6. Bf4 {[%emt 0:04:06]} Bg4 7. Ne2 {[%emt 0:03:37]} e6 8. O-O {[%emt 0:02:09]} Bd6 9. f3 Bh5 10. Qb3 Rb8 11. Na3 a6 12. Rae1 Bg6 13. Qd1 Bxd3 14. Qxd3 O-O 15. Nc2 Qc7 16. Bxd6 Qxd6 17. f4 Rfe8 18. Kh1 Rbd8 19. Ng1 Ne4 20. Nf3 Qxf4 21. Kg1 Qd6 22. Ne3 {[%emt 1:03:10]} f5 23. Re2 {[%emt 0:11:09]} Rf8 24. Rd1 {[%emt 0:12:02]} Rf6 25. c4 dxc4 26. Qxc4 {[%emt 0:11:16]} Qb4 27. Qd3 {[%emt 0:18:17]} Nc5 28. Qc3 Qxc3 29. bxc3 {[%emt 0:05:00]} Ne4 30. Rc2 {[%emt 0:01:50]} Rf7 31. Nc4 {[%emt 0:10:30]} Rc7 32. Rdc1 {[%emt 0:12:14]} b5 33. Ncd2 {[%emt 0:04:14]} Nxd2 34. Rxd2 {[%emt 0:02:21]} Rdc8 35. Re1 {[%emt 0:03:41]} Nd8 36. Ng5 {[%emt 0:03:35]} Rxc3 37. d5 {[%emt 0:02:36]} Rc1 38. Rde2 {[%emt 0:01:36]} h6 39. dxe6 {[%emt 0:03:43]} Rxe1+ 40. Rxe1 {[%emt 0:00:39]} Nc6 41. Nf7 {[%emt 0:01:04]} Re8 42. Nd6 {[%emt 0:03:21]} Re7 43. Nxf5 {[%emt 0:00:42]} Re8 44. e7 {[%emt 0:04:00]} h5 45. Re6 {[%emt 0:01:40]} Nxe7 46. Rxe7 {[%emt 0:08:12]} Rxe7 47. Nxe7+ {[%emt 0:00:23]} Kf7 48. Nd5 {[%emt 0:00:27]} a5 49. Kf2 {[%emt 0:00:53]} b4 50. Ke3 {[%emt 0:00:33]} Ke6 51. Ke4 {[%emt 0:00:41]} Kd6 52. Kd4 {[%emt 0:01:23]} Kc6 53. Kc4 {[%emt 0:01:06]} Kd6 54. Nf4 Ke5 55. Nxh5 Ke4 56. Nxg7 {[%emt 0:01:43]} Ke3 57. Kb3 {[%emt 0:00:21]} Kd4 58. a3 {[%emt 0:00:13]} bxa3 59. Kxa3 Ke5 {[%emt 0:00:16]} 60. h4 Kf6 {[%emt 0:00:16]} 61. Ne8+ Kf7 {[%emt 0:00:23]} 62. Nd6+ Kg6 {[%emt 0:00:17]} 63. g4 Kh7 64. h5 Kh6 65. Nf5+ Kh7 66. g5 {[%emt 0:00:43]} Kh8 {[%emt 0:00:05]} 67. g6 {[%emt 0:00:06]} Kg8 {[%emt 0:00:03]} 68. h6 {[%emt 0:00:26]} Kh8 {[%emt 0:00:08]} 69. g7+ {[%emt 0:00:07]} Kh7 {[%emt 0:00:11]} 70. Ne7 {[%emt 0:00:04]} a4 71. g8=Q+ Kxh6 72. Qg6# {[%emt 0:00:18]} 1-0

[Event "360 One Wealth GP-3 2024"]
[Site "Mumbai"]
[Date "2024.02.07"]
[Round "3.1"]
[White "Raghav, Srivathsav V"]
[Black "Sunil, Vaidya"]
[Result "1-0"]
[ECO "A47"]
[WhiteElo "2017"]
[BlackElo "1402"]
[Annotator "TA"]
[PlyCount "67"]
[EventDate "2024.02.04"]
[EventType "swiss"]
[EventCountry "IND"]
[SourceTitle "playchess.com"]
[Source "ChessBase"]
[SourceQuality "1"]
[TimeControl "5400+30"]

{[%evp 9,67,3,10,8,15,9,12,11,17,12,10,16,19,4,10,14,18,13,14,0,20,27,41,12,31,41,255,232,214,113,348,348,460,464,465,461,478,478,483,477,884,908,897,909,910,897,1369,1345,1299,1156,1547,1104,29974,1582,1581,1581,29979,29980,29971,1542]} 1. Nf3 {[%emt 0:09:05]} e6 {[%emt 0:01:05]} 2. b3 {[%emt 0:00:12]} b6 {[%emt 0:00:45]} 3. Bb2 {[%emt 0:00:17]} Bb7 {[%emt 0:00:36]} 4. e3 {[%emt 0:00:16]} Nf6 {[%emt 0:00:19]} 5. d4 {[%emt 0:00:02]} Be7 {[%emt 0:00:26]} 6. Nbd2 {[%emt 0:00:08]} c5 {[%emt 0:01:39]} 7. Bd3 {[%emt 0:00:09]} cxd4 {[%emt 0:00:21]} 8. exd4 {[%emt 0:00:07] The position is equal.} Nc6 {[%emt 0:01:24]} 9. a3 {[%emt 0:00:12]} Nd5 {[%emt 0:01:59]} 10. g3 {[%emt 0:00:53]} Nf6 {[%emt 0:03:12]} 11. Qe2 {[%emt 0:01:33]} Rc8 {[%emt 0:01:31]} 12. O-O {[%emt 0:00:11]} O-O {[%emt 0:02:47]} 13. Rfe1 {[%emt 0:02:43]} d5 {[%emt 0:05:57]} 14. b4 {[%emt 0:02:05]} Nd7 {[%emt 0:04:11]} 15. c4 {[%emt 0:03:41]} Bf6 {[%emt 0:01:05]} 16. Ne5 {[%emt 0:04:07]} dxc4 {[%emt 0:09:27]} 17. Ndxc4 {[%emt 0:05:43] Strongly threatening Nd6.} Ndxe5 $2 {[%emt 0:05:05] White stays focused until the end.} (17... Be7 $14) 18. dxe5 $18 {[%emt 0:00:45]} Be7 {[%emt 0:00:50] [#]} 19. Rad1 $40 {[%emt 0:00:16][%mdl 128] Black is in trouble.} (19. Nd6 $1 $18 {[%cal Rd6b7]} Bxd6 20. exd6) 19... Qc7 {[%emt 0:00:57] [#]} (19... Nd4 $16 20. Bxh7+ (20. Bxd4 Qd5 $16) 20... Kxh7 21. Rxd4 (21. Bxd4 $2 Qd5 $19) 21... Qe8) 20. Nd6 $1 {[%emt 0:01:36][%mdl 512]} Rcd8 {[%emt 0:01:22]} (20... Rfd8 21. Nxb7) 21. Nxb7 {[%emt 0:00:42]} Qxb7 {[%emt 0:00:10]} 22. Be4 {[%emt 0:00:20]} a6 {[%emt 0:08:27]} 23. Rxd8 {[%emt 0:05:40]} Rxd8 {[%emt 0:02:55]} 24. Rc1 {[%emt 0:00:14]} Rd5 {[%emt 0:05:04]} (24... Rc8 $142 25. Qf3 Qb8 26. Bxc6 (26. Rxc6 Rxc6 27. Bxc6 a5 $18) 26... h6) 25. Bxd5 {[%emt 0:02:05]} exd5 {[%emt 0:00:20]} 26. e6 {[%emt 0:00:29]} Nd8 {[%emt 0:03:20]} 27. exf7+ {[%emt 0:00:34]} Kxf7 {[%emt 0:00:51][%cal Bg8f7,Bf7e6,Be6d6,Bd6c7,Bc7d7][%mdl 32]} 28. Qh5+ {[%emt 0:01:43]} Ke6 {[%emt 0:04:06]} 29. Qxh7 {[%emt 0:01:34]} Bf8 {[%emt 0:01:34]} 30. Re1+ {[%emt 0:01:25]} Kd6 {[%emt 0:03:33]} 31. Qg6+ {[%emt 0:00:24]} (31. Be5+ $142 Kc6 32. Qg6+ Kd7 33. Qf5+ (33. Bxg7 Kc8 $18) 33... Kc6 34. Qxf8 Qd7 35. Rc1+ (35. Bxg7 Kb5 $18) (35. Qxg7 Qxg7 36. Bxg7 Nf7 $18) 35... Kb7 36. Rc7+ (36. Bxg7 a5 $18) (36. Qxg7 Qxg7 37. Bxg7 a5 $18) 36... Qxc7 37. Bxc7 Kxc7 38. Qxg7+ Kd6 39. Qa7) 31... Kc7 {[%emt 0:01:36]} 32. Be5+ {[%emt 0:00:40]} Kd7 {[%emt 0:00:50]} 33. Bf4 {[%emt 0:00:34]} Be7 {[%emt 0:04:16]} 34. Qxg7 {[%emt 0:01:03] Weighted Error Value: White=0.12 (very precise) /Black=0.99.  Loses game:     	---       	Black=2      Mistake:       	White=1     	Black=1      Inaccurate:     	White=1     	Black=1      OK:         	White=5     	Black=4      Best:        	White=1     	---        Brilliant:      	White=1     	---} (34. Qg4+ $142 Ke8 35. Qxg7 b5 36. Bg5 Nc6 37. Bxe7 Qxe7 38. Qg6+ (38. Rxe7+ Nxe7 39. Qf6 Ng8 $18) 38... Kf8 39. Rxe7 Nxe7 40. Qf6+ (40. Qxa6 Kf7 $18) 40... Ke8 41. Qxa6) 1-0

[Event "360 One Wealth GP-3 2024"]
[Site "Mumbai"]
[Date "2024.02.07"]
[Round "3.2"]
[White "Rishith Devnarayan S"]
[Black "Bartakke, Amardeep S."]
[Result "0-1"]
[ECO "B56"]
[WhiteElo "1231"]
[BlackElo "1961"]
[Annotator "NA RC"]
[PlyCount "58"]
[EventDate "2024.02.04"]
[EventType "swiss"]
[EventCountry "IND"]
[SourceTitle "playchess.com"]
[Source "ChessBase"]
[SourceQuality "1"]
[TimeControl "5400+30"]

1. e4 {[%emt 0:33:17]} c5 {[%emt 0:00:09]} 2. Nf3 {[%emt 0:00:07]} d6 {[%emt 0:00:10]} 3. d4 {[%emt 0:00:05]} cxd4 {[%emt 0:00:03]} 4. Nxd4 {[%emt 0:00:06]} Nf6 {[%emt 0:00:08]} 5. Nc3 {[%emt 0:00:06]} Nc6 {[%emt 0:00:13]} 6. f3 {[%emt 0:00:20]} e5 {[%emt 0:00:16]} 7. Nb3 {[%emt 0:00:10]} Be6 {[%emt 0:00:06]} 8. Be3 {[%emt 0:00:21]} Be7 {[%emt 0:00:37]} 9. Qd2 {[%emt 0:00:08]} a5 {[%emt 0:00:29]} 10. Na4 {[%emt 0:05:07]} d5 {[%emt 0:12:24]} 11. Bb6 {[%emt 0:03:37]} Qb8 {[%emt 0:11:56]} 12. Bb5 {[%emt 0:10:25]} O-O {[%emt 0:02:26]} 13. g4 {[%emt 0:04:25]} dxe4 {[%emt 0:02:29]} 14. g5 {[%emt 0:00:55]} Nd5 {[%emt 0:00:51]} 15. fxe4 {[%emt 0:00:25]} Nf4 {[%emt 0:03:57]} 16. h4 {[%emt 0:01:57]} Bg4 {[%emt 0:01:57]} 17. Rg1 {[%emt 0:03:06]} Bf3 {[%emt 0:04:24]} 18. Be3 {[%emt 0:01:59]} Rd8 {[%emt 0:01:40]} 19. Qf2 {[%emt 0:00:09]} Bxe4 {[%emt 0:00:37]} 20. Bxf4 {[%emt 0:09:05]} exf4 {[%emt 0:00:15]} 21. Nb6 {[%emt 0:00:33]} Nb4 {[%emt 0:09:53]} 22. Qe2 {[%emt 0:01:31]} Nxc2+ {[%emt 0:02:17]} 23. Kf2 {[%emt 0:00:43]} Qa7 {[%emt 0:01:22]} 24. Qxe4 {[%emt 0:01:54]} Qxb6+ {[%emt 0:00:06]} 25. Kg2 {[%emt 0:00:16]} Nxa1 {[%emt 0:03:29]} 26. Rxa1 {[%emt 0:02:50]} Qxb5 {[%emt 0:00:32]} 27. Qxe7 {[%emt 0:00:30]} a4 {[%emt 0:00:34]} 28. Rc1 {[%emt 0:02:15]} axb3 {[%emt 0:00:16]} 29. Rc7 {[%emt 0:00:10]} Qd5+ {[%emt 0:00:15]} 0-1

[Event "360 One Wealth GP-3 2024"]
[Site "Mumbai"]
[Date "2024.02.07"]
[Round "3.4"]
[White "Arnav Mahesh Koli"]
[Black "Arnav Ashish Thatte"]
[Result "1-0"]
[ECO "C18"]
[WhiteElo "1755"]
[BlackElo "1280"]
[Annotator "NA RC"]
[PlyCount "99"]
[EventDate "2024.02.04"]
[EventType "swiss"]
[EventCountry "IND"]
[SourceTitle "playchess.com"]
[Source "ChessBase"]
[SourceQuality "1"]
[TimeControl "5400+30"]

1. e4 {[%emt 0:00:04]} e6 {[%emt 0:00:11]} 2. d4 {[%emt 0:00:41]} d5 {[%emt 0:00:24]} 3. Nc3 {[%emt 0:00:50]} Bb4 {[%emt 0:01:13]} 4. e5 {[%emt 0:00:20]} c5 {[%emt 0:00:32]} 5. a3 {[%emt 0:03:02]} Bxc3+ {[%emt 0:00:37]} 6. bxc3 {[%emt 0:00:06]} Ne7 {[%emt 0:00:56]} 7. h4 {[%emt 0:01:45]} Nbc6 {[%emt 0:01:34]} 8. h5 {[%emt 0:03:40]} h6 {[%emt 0:04:39]} 9. Qg4 {[%emt 0:01:47]} Rg8 {[%emt 0:12:29]} 10. Bd3 {[%emt 0:00:16]} Nf5 {[%emt 0:02:27]} 11. Qf4 {[%emt 0:05:33]} c4 {[%emt 0:08:26]} 12. Bxf5 {[%emt 0:02:43]} exf5 {[%emt 0:00:35]} 13. Rh3 {[%emt 0:01:17]} Bd7 {[%emt 0:03:19]} 14. Rb1 {[%emt 0:00:12]} Qc8 {[%emt 0:03:22]} 15. a4 {[%emt 0:04:28]} Ne7 {[%emt 0:04:03]} 16. a5 {[%emt 0:01:55]} Qc6 {[%emt 0:07:03]} 17. Ba3 {[%emt 0:05:59]} Nc8 {[%emt 0:14:40]} 18. Kd2 {[%emt 0:06:11]} Qa4 {[%emt 0:08:39]} 19. Bb4 {[%emt 0:00:22]} Qa2 {[%emt 0:01:36]} 20. Rc1 {[%emt 0:00:29]} b6 {[%emt 0:01:05]} 21. Rg3 {[%emt 0:00:58]} Ne7 {[%emt 0:03:20]} 22. Bd6 {[%emt 0:02:30]} bxa5 {[%emt 0:01:46]} 23. Qh4 {[%emt 0:00:29]} Nc6 {[%emt 0:07:03]} 24. Qf6 {[%emt 0:00:24]} a4 {[%emt 0:00:37]} 25. Rxg7 {[%emt 0:00:32]} Rxg7 {[%emt 0:00:11]} 26. Qxg7 {[%emt 0:00:02]} O-O-O {[%emt 0:00:14]} 27. Qxh6 {[%emt 0:02:28]} Qb2 {[%emt 0:00:37]} 28. Qf6 {[%emt 0:04:08]} a3 {[%emt 0:00:44]} 29. h6 {[%emt 0:07:56]} a2 {[%emt 0:00:24]} 30. Ne2 {[%emt 0:00:04]} a1=Q {[%emt 0:01:03]} 31. Rxa1 {[%emt 0:00:03]} Qxa1 {[%emt 0:00:11]} 32. Nc1 {[%emt 0:00:03]} Nxd4 {[%emt 0:04:40]} 33. Qxd8+ {[%emt 0:01:26]} Kxd8 {[%emt 0:00:24]} 34. h7 {[%emt 0:00:04]} Nb5 {[%emt 0:04:15]} 35. h8=Q+ {[%emt 0:00:12]} Be8 {[%emt 0:00:07]} 36. Qf6+ {[%emt 0:01:56]} Kc8 {[%emt 0:00:17]} 37. Bb4 {[%emt 0:00:47]} d4 {[%emt 0:01:59]} 38. Qxf5+ {[%emt 0:01:01]} Bd7 {[%emt 0:00:51]} 39. Qxf7 {[%emt 0:00:36]} dxc3+ {[%emt 0:00:32]} 40. Kd1 {[%emt 0:00:15]} a5 {[%emt 0:02:30]} 41. Qxc4+ {[%emt 0:00:10]} Kd8 {[%emt 0:00:05]} 42. Bc5 {[%emt 0:00:55]} a4 {[%emt 0:00:29]} 43. e6 {[%emt 0:00:54]} Be8 {[%emt 0:00:12]} 44. Qd5+ {[%emt 0:00:27]} Kc7 {[%emt 0:00:09]} 45. e7 {[%emt 0:00:21]} a3 {[%emt 0:00:21]} 46. Qd8+ {[%emt 0:00:29]} Kb7 {[%emt 0:00:15]} 47. Qxe8 {[%emt 0:00:41]} Nc7 {[%emt 0:00:11]} 48. Qa4 {[%emt 0:00:07]} Qb2 {[%emt 0:00:14]} 49. Bxa3 {[%emt 0:00:12]} Qb6 {[%emt 0:00:40]} 50. Qb4 {[%emt 0:00:19]} 1-0

[Event "360 One Wealth GP-3 2024"]
[Site "Mumbai"]
[Date "2024.02.07"]
[Round "3.5"]
[White "Mishra Sanjeev"]
[Black "Mayanka Rakesh Rana"]
[Result "1-0"]
[ECO "B13"]
[WhiteElo "1683"]
[BlackElo "1136"]
[Annotator "NA RC"]
[PlyCount "45"]
[EventDate "2024.02.04"]
[EventType "swiss"]
[EventCountry "IND"]
[SourceTitle "playchess.com"]
[Source "ChessBase"]
[SourceQuality "1"]
[TimeControl "5400+30"]

1. e4 {[%emt 0:03:07]} d5 {[%emt 0:00:01]} 2. exd5 {[%emt 0:00:09]} Nf6 {[%emt 0:00:04]} 3. c4 {[%emt 0:00:10]} c6 {[%emt 0:00:14]} 4. d4 {[%emt 0:00:08]} cxd5 {[%emt 0:00:07]} 5. Nf3 {[%emt 0:00:03]} Nc6 {[%emt 0:00:29]} 6. Nc3 {[%emt 0:00:07]} Bg4 {[%emt 0:00:14]} 7. cxd5 {[%emt 0:00:25]} Nxd5 {[%emt 0:00:07]} 8. Qb3 {[%emt 0:01:54]} Nb6 {[%emt 0:02:40]} 9. d5 {[%emt 0:01:04]} Bxf3 {[%emt 0:00:32]} 10. gxf3 {[%emt 0:00:12]} Ne5 {[%emt 0:02:23]} 11. Bb5+ {[%emt 0:00:39]} Ned7 {[%emt 0:00:47]} 12. Be3 {[%emt 0:00:44]} Qc7 {[%emt 0:02:44]} 13. Rc1 {[%emt 0:02:38]} Nc8 {[%emt 0:05:44]} 14. Ne4 {[%emt 0:01:30]} Qd8 {[%emt 0:04:14]} 15. Nc5 {[%emt 0:01:31]} Ncb6 {[%emt 0:00:38]} 16. Nxb7 {[%emt 0:00:36]} Qb8 {[%emt 0:00:29]} 17. Nc5 {[%emt 0:00:17]} Qd6 {[%emt 0:01:30]} 18. a4 {[%emt 0:02:35]} a5 {[%emt 0:01:52]} 19. Ne4 {[%emt 0:01:13]} Qb4+ {[%emt 0:03:30]} 20. Qxb4 {[%emt 0:00:07]} axb4 {[%emt 0:00:07]} 21. Bxb6 {[%emt 0:00:02]} Rb8 {[%emt 0:01:21]} 22. Rc7 {[%emt 0:00:08]} Rxb6 {[%emt 0:00:24]} 23. Rc8# {[%emt 0:00:04]} 1-0

[Event "360 One Wealth GP-3 2024"]
[Site "Mumbai"]
[Date "2024.02.07"]
[Round "3.6"]
[White "Iyer Vivek"]
[Black "Kapadi Yash"]
[Result "0-1"]
[ECO "A00"]
[WhiteElo "1359"]
[BlackElo "1626"]
[Annotator "NA RC"]
[PlyCount "72"]
[EventDate "2024.02.04"]
[EventType "swiss"]
[EventCountry "IND"]
[SourceTitle "playchess.com"]
[Source "ChessBase"]
[SourceQuality "1"]
[TimeControl "5400+30"]

1. g4 {[%emt 0:00:05]} c6 {[%emt 0:15:43]} 2. d4 {[%emt 0:01:16]} d5 {[%emt 0:00:29]} 3. e3 {[%emt 0:00:56]} e5 {[%emt 0:04:07]} 4. c4 {[%emt 0:02:11]} dxc4 {[%emt 0:11:15]} 5. Bxc4 {[%emt 0:00:23]} exd4 {[%emt 0:00:20]} 6. exd4 {[%emt 0:00:58]} Bb4+ {[%emt 0:06:06]} 7. Nc3 {[%emt 0:00:30]} Qe7+ {[%emt 0:00:16]} 8. Be3 {[%emt 0:01:09]} Nf6 {[%emt 0:00:12]} 9. h3 {[%emt 0:01:24]} Nbd7 {[%emt 0:05:50]} 10. a3 {[%emt 0:01:12]} Bd6 {[%emt 0:01:15]} 11. Qf3 {[%emt 0:02:38]} Nb6 {[%emt 0:01:24]} 12. Bb3 {[%emt 0:04:08]} Be6 {[%emt 0:00:41]} 13. Bxe6 {[%emt 0:00:16]} Qxe6 {[%emt 0:00:20]} 14. Nge2 {[%emt 0:00:46]} O-O {[%emt 0:07:05]} 15. O-O {[%emt 0:04:04]} Qb3 {[%emt 0:04:27]} 16. g5 {[%emt 0:01:13]} Nfd5 {[%emt 0:00:15]} 17. Ne4 {[%emt 0:00:25]} Rad8 {[%emt 0:03:48]} 18. N2g3 {[%emt 0:02:54]} Bf4 {[%emt 0:08:59]} 19. Nf5 {[%emt 0:00:58]} Rfe8 {[%emt 0:01:43]} 20. Nd2 {[%emt 0:02:20]} Qd3 {[%emt 0:00:19]} 21. Bxf4 {[%emt 0:01:20]} Qxf5 {[%emt 0:01:26]} 22. Be3 {[%emt 0:01:30]} Qd3 {[%emt 0:02:44]} 23. Rad1 {[%emt 0:03:56]} Nxe3 {[%emt 0:00:25]} 24. fxe3 {[%emt 0:00:14]} Qxe3+ {[%emt 0:00:10]} 25. Qxe3 {[%emt 0:01:03]} Rxe3 {[%emt 0:00:02]} 26. Rf3 {[%emt 0:00:21]} Re6 {[%emt 0:00:48]} 27. Rdf1 {[%emt 0:00:38]} Rd7 {[%emt 0:02:38]} 28. Nb3 {[%emt 0:07:21]} Rg6 {[%emt 0:00:30]} 29. Rf5 {[%emt 0:01:00]} h6 {[%emt 0:00:11]} 30. h4 {[%emt 0:00:03]} hxg5 {[%emt 0:00:56]} 31. hxg5 {[%emt 0:00:12]} Nc4 {[%emt 0:04:00]} 32. Nc5 {[%emt 0:00:26]} Rxd4 {[%emt 0:00:37]} 33. Kf2 {[%emt 0:04:22]} b6 {[%emt 0:02:20]} 34. Nb3 {[%emt 0:00:13]} Rd3 {[%emt 0:00:47]} 35. Nc1 {[%emt 0:05:48]} Rd2+ {[%emt 0:00:27]} 36. Ke1 {[%emt 0:00:29]} Re6+ {[%emt 0:00:16]} 0-1

[Event "360 One Wealth GP-3 2024"]
[Site "Mumbai"]
[Date "2024.02.07"]
[Round "3.7"]
[White "Miranka Trishad"]
[Black "Kush Ajay Agarwal"]
[Result "0-1"]
[ECO "C54"]
[WhiteElo "1341"]
[BlackElo "1458"]
[Annotator "NA RC"]
[PlyCount "76"]
[EventDate "2024.02.04"]
[EventType "swiss"]
[EventCountry "IND"]
[SourceTitle "playchess.com"]
[Source "ChessBase"]
[SourceQuality "1"]
[TimeControl "5400+30"]

1. e4 {[%emt 0:00:07]} e5 {[%emt 0:00:10]} 2. Nf3 {[%emt 0:00:56]} Nc6 {[%emt 0:00:01]} 3. Bc4 {[%emt 0:00:16]} Bc5 {[%emt 0:00:37]} 4. c3 {[%emt 0:00:22]} Nf6 {[%emt 0:00:34]} 5. d3 {[%emt 0:00:43]} a6 {[%emt 0:00:39]} 6. O-O {[%emt 0:00:42]} d6 {[%emt 0:00:05]} 7. a4 {[%emt 0:00:57]} Ba7 {[%emt 0:00:05]} 8. Re1 {[%emt 0:01:54]} O-O {[%emt 0:00:09]} 9. h3 {[%emt 0:01:30]} Be6 {[%emt 0:00:29]} 10. Bxe6 {[%emt 0:11:50]} fxe6 {[%emt 0:00:03]} 11. b4 {[%emt 0:02:29]} d5 {[%emt 0:01:51]} 12. Qb3 {[%emt 0:07:36]} Qd7 {[%emt 0:00:51]} 13. Bg5 {[%emt 0:30:52]} b5 {[%emt 0:03:07]} 14. axb5 {[%emt 0:03:06]} axb5 {[%emt 0:00:02]} 15. Na3 {[%emt 0:00:10]} Rab8 {[%emt 0:06:02]} 16. exd5 {[%emt 0:06:50]} exd5 {[%emt 0:01:36]} 17. Ra2 {[%emt 0:04:31]} Qd6 {[%emt 0:04:25]} 18. Rae2 {[%emt 0:02:41]} Kh8 {[%emt 0:00:35]} 19. Bh4 {[%emt 0:03:01]} Nh5 {[%emt 0:04:39]} 20. Bg5 {[%emt 0:15:49]} e4 {[%emt 0:16:14]} 21. dxe4 {[%emt 0:03:54]} Rxf3 {[%emt 0:00:20]} 22. e5 {[%emt 0:00:23]} Qe6 {[%emt 0:01:18]} 23. gxf3 {[%emt 0:00:38]} Qxh3 {[%emt 0:01:15]} 24. Qxd5 {[%emt 0:00:36]} Qg3+ {[%emt 0:04:10]} 25. Kh1 {[%emt 0:00:33]} Bxf2 {[%emt 0:01:31]} 26. Rxf2 {[%emt 0:00:32]} Qxf2 {[%emt 0:00:04]} 27. Rg1 {[%emt 0:00:22]} Ng3+ {[%emt 0:00:50]} 28. Rxg3 {[%emt 0:00:01]} Qxg3 {[%emt 0:00:03]} 29. f4 {[%emt 0:01:05]} h6 {[%emt 0:02:27]} 30. Bf6 gxf6 {[%emt 0:00:43]} 31. Qxc6 {[%emt 0:00:14]} Qh4+ {[%emt 0:00:48]} 32. Kg1 {[%emt 0:00:26]} Rg8+ {[%emt 0:00:06]} 33. Kf1 {[%emt 0:00:18]} Qxf4+ {[%emt 0:00:07]} 34. Ke2 {[%emt 0:00:16]} Qxe5+ {[%emt 0:00:11]} 35. Kd2 {[%emt 0:00:06]} Qh2+ {[%emt 0:00:24]} 36. Kd3 {[%emt 0:00:17]} Rg3+ {[%emt 0:00:10]} 37. Kd4 {[%emt 0:00:03]} Qh4+ {[%emt 0:00:26]} 38. Kd5 {[%emt 0:00:17]} Qh1+ {[%emt 0:00:09]} 0-1

[Event "360 One Wealth GP-3 2024"]
[Site "Mumbai"]
[Date "2024.02.07"]
[Round "3.9"]
[White "Gala Vansh Rasik"]
[Black "Soni Deepak R"]
[Result "0-1"]
[ECO "A46"]
[WhiteElo "1285"]
[BlackElo "1445"]
[Annotator "NA RC"]
[PlyCount "118"]
[EventDate "2024.02.04"]
[EventType "swiss"]
[EventCountry "IND"]
[SourceTitle "playchess.com"]
[Source "ChessBase"]
[SourceQuality "1"]
[TimeControl "5400+30"]

1. d4 {[%emt 0:01:31]} c5 {[%emt 0:00:28]} 2. Nf3 {[%emt 0:00:17]} Nf6 {[%emt 0:00:35]} 3. Bf4 {[%emt 0:01:06]} cxd4 {[%emt 0:00:14]} 4. Bxb8 {[%emt 0:00:19]} Rxb8 {[%emt 0:04:25]} 5. Qxd4 {[%emt 0:00:15]} Qa5+ {[%emt 0:01:40]} 6. Nbd2 {[%emt 0:00:45]} e6 {[%emt 0:00:44]} 7. c3 {[%emt 0:03:33]} Bc5 {[%emt 0:05:24]} 8. Qf4 {[%emt 0:01:49]} d6 {[%emt 0:09:11]} 9. b4 {[%emt 0:00:44]} Nd5 {[%emt 0:03:51]} 10. Qc4 {[%emt 0:01:29]} b5 {[%emt 0:04:48]} 11. Qxd5 {[%emt 0:01:37]} exd5 {[%emt 0:06:31]} 12. bxa5 {[%emt 0:00:10]} Ba3 {[%emt 0:00:33]} 13. Rd1 {[%emt 0:03:15]} Bb2 {[%emt 0:00:59]} 14. Nb1 {[%emt 0:02:28]} Bf5 {[%emt 0:00:48]} 15. e4 {[%emt 0:03:07]} dxe4 {[%emt 0:02:22]} 16. Nd4 {[%emt 0:00:22]} Bd7 {[%emt 0:02:06]} 17. Be2 {[%emt 0:01:25]} b4 {[%emt 0:01:07]} 18. cxb4 {[%emt 0:03:38]} Rxb4 {[%emt 0:03:15]} 19. Nc2 {[%emt 0:00:27]} Ra4 {[%emt 0:00:56]} 20. Rxd6 {[%emt 0:00:40]} Rxa2 {[%emt 0:01:34]} 21. O-O {[%emt 0:03:24]} Ke7 {[%emt 0:04:54]} 22. Rd2 {[%emt 0:03:00]} Rxa5 {[%emt 0:01:09]} 23. Ne3 {[%emt 0:00:54]} Rb8 {[%emt 0:05:34]} 24. Nc4 {[%emt 0:06:44]} Rab5 {[%emt 0:00:44]} 25. Nd6 {[%emt 0:01:29]} Rb4 {[%emt 0:00:29]} 26. Nxf7 {[%emt 0:02:10]} Bd4 {[%emt 0:05:21]} 27. Ng5 {[%emt 0:11:19]} e3 {[%emt 0:07:10]} 28. Rdd1 {[%emt 0:00:10]} exf2+ {[%emt 0:00:34]} 29. Kh1 {[%emt 0:00:09]} Ba4 {[%emt 0:00:14]} 30. Rxd4 {[%emt 0:21:22]} Rxd4 {[%emt 0:00:57]} 31. Nf3 {[%emt 0:00:51]} Rdb4 {[%emt 0:03:16]} 32. Nc3 {[%emt 0:00:25]} Bb3 {[%emt 0:02:04]} 33. Rxf2 {[%emt 0:01:57]} Rc8 {[%emt 0:00:24]} 34. Nb5 {[%emt 0:02:36]} Rc1+ {[%emt 0:01:20]} 35. Rf1 {[%emt 0:00:54]} Rxf1+ {[%emt 0:02:04]} 36. Bxf1 {[%emt 0:00:02]} a5 {[%emt 0:04:07]} 37. Nc3 {[%emt 0:08:10]} Bc4 {[%emt 0:01:24]} 38. Nd4 {[%emt 0:04:49]} Bxf1 {[%emt 0:00:42]} 39. Nc6+ {[%emt 0:01:11]} Kd6 {[%emt 0:00:24]} 40. Nxb4 {[%emt 0:00:12]} axb4 {[%emt 0:00:05]} 41. Nd1 {[%emt 0:00:42]} Be2 {[%emt 0:00:36]} 42. Nb2 {[%emt 0:00:22]} Ke5 {[%emt 0:00:33]} 43. Kg1 {[%emt 0:00:10]} Kd4 {[%emt 0:00:16]} 44. Kf2 {[%emt 0:00:53]} Bh5 {[%emt 0:00:25]} 45. h3 {[%emt 0:01:24]} Kc3 {[%emt 0:00:19]} 46. Na4+ {[%emt 0:00:21]} Kc2 {[%emt 0:00:33]} 47. g4 {[%emt 0:01:05]} Bf7 {[%emt 0:00:21]} 48. Nc5 {[%emt 0:00:36]} b3 {[%emt 0:00:12]} 49. Nxb3 {[%emt 0:00:42]} Kxb3 {[%emt 0:00:14]} 50. Ke3 {[%emt 0:00:17]} Kc4 {[%emt 0:00:09]} 51. Ke4 {[%emt 0:00:28]} Kc5 {[%emt 0:01:06]} 52. Ke5 {[%emt 0:02:20]} Kc6 {[%emt 0:00:20]} 53. h4 {[%emt 0:00:30]} Kd7 {[%emt 0:00:15]} 54. h5 {[%emt 0:00:13]} Ke7 {[%emt 0:00:24]} 55. Kf5 {[%emt 0:01:13]} Bb3 {[%emt 0:00:38]} 56. g5 {[%emt 0:03:16]} Bc2+ {[%emt 0:00:15]} 57. Ke5 {[%emt 0:00:07]} Kf7 {[%emt 0:00:17]} 58. h6 {[%emt 0:00:55]} gxh6 {[%emt 0:00:05]} 59. gxh6 {[%emt 0:00:14]} Kg6 {[%emt 0:00:02]} 0-1